fUSD/lending_fUSD_20250321
["ID","MTS","AMOUNT","RATE_DAILY","PERIOD"]
[356512986,1742590839760,-500.0,0.00047123,120]
[356512987,1742590839786,-500.0,0.00047123,120]
[356512988,1742590839811,-500.0,0.00047123,120]
[356512989,1742590839837,-500.0,0.00047123,120]
[356512990,1742590839863,-500.0,0.00047123,120]
[356512991,1742590839887,-500.0,0.00047123,120]
[356512992,1742590839912,-500.0,0.00047123,120]
[356512993,1742590839938,-500.0,0.00047123,120]
[356512994,1742590839964,-519.11,0.00047123,120]
[356512995,1742590839989,-500.0,0.00047123,120]
[356512996,1742590840016,-500.0,0.00047123,120]
[356512997,1742590840042,-500.0,0.00047123,120]
[356512998,1742590840068,-500.0,0.00047123,120]
[356512999,1742590840094,-500.0,0.00047123,120]
[356513000,1742590840124,-500.0,0.00047123,120]
[356513001,1742590840150,-500.0,0.00047123,120]
[356513002,1742590840176,-500.0,0.00047123,120]
[356513003,1742590840203,-500.0,0.00047123,120]
[356513004,1742590840228,-500.0,0.00047123,120]
[356513005,1742590840254,-500.0,0.00047123,120]
[356513006,1742590840280,-500.0,0.00047123,120]
[356513007,1742590840307,-500.0,0.00047123,120]
[356513008,1742590840334,-500.0,0.00047123,120]
[356513009,1742590840361,-500.0,0.00047123,120]
[356513010,1742590840389,-500.0,0.00047123,120]
[356513011,1742590840415,-500.0,0.00047123,120]
[356513012,1742590840441,-500.0,0.00047123,120]
[356513013,1742590840467,-1050.8,0.00047123,120]
[356513014,1742590840491,-561.18852882,0.00047123,120]
[356513015,1742590840518,-500.0,0.00047123,120]
[356513016,1742590840543,-500.0,0.00047123,120]
[356513017,1742590840568,-1795.27,0.00047123,120]
[356513018,1742590840593,-510.98262947,0.00047123,120]
[356513019,1742590840621,-659.25,0.00047123,120]
[356513020,1742590840647,-500.0,0.00047123,120]
[356513021,1742590840672,-500.0,0.00047123,120]
[356513022,1742590840697,-500.0,0.00047123,120]
[356513023,1742590840722,-500.0,0.00047123,120]
[356513024,1742590840746,-501.15747395,0.00047123,120]
[356513025,1742590840771,-500.0,0.00047123,120]
[356513026,1742590840796,-500.0,0.00047123,120]
[356513027,1742590840821,-500.0,0.00047123,120]
[356513028,1742590840846,-500.0,0.00047123,120]
[356513029,1742590840870,-512.00196987,0.00047123,120]
[356513030,1742590840895,-527.78,0.00047123,120]
[356513031,1742590840919,-517.13989383,0.00047123,120]
[356513032,1742590840944,-500.0,0.00047123,120]
[356513033,1742590840969,-500.0,0.00047123,120]
[356513034,1742590840996,-500.0,0.00047123,120]
[356513035,1742590841022,-500.0,0.00047123,120]
[356513036,1742590841047,-500.0,0.00047123,120]
[356513037,1742590841072,-500.0,0.00047123,120]
[356513038,1742590841099,-500.0,0.00047123,120]
[356513039,1742590841129,-500.0,0.00047123,120]
[356513040,1742590841155,-584.31,0.00047123,120]
[356513041,1742590841180,-500.0,0.00047123,120]
[356513042,1742590841205,-500.0,0.00047123,120]
[356513043,1742590841229,-500.0,0.00047123,120]
[356513044,1742590841254,-500.0,0.00047123,120]
[356513045,1742590841280,-500.0,0.00047123,120]
[356513046,1742590841305,-661.65,0.00047123,120]
[356513047,1742590841331,-500.0,0.00047123,120]
[356513048,1742590841356,-177.88176293,0.00047123,120]
[356513049,1742590841382,-500.0,0.00047123,120]
[356513050,1742590841408,-1000.0,0.00047123,120]
[356513051,1742590841432,-410.81266409,0.00047123,120]
[356513052,1742590841458,-500.0,0.00047123,120]
[356513053,1742590841483,-506.04081181,0.00047123,120]
[356513054,1742590841508,-500.0,0.00047123,120]
[356513055,1742590841534,-500.0,0.00047123,120]
[356513056,1742590841558,-500.0,0.00047123,120]
[356513057,1742590841584,-500.0,0.00047123,120]
[356513058,1742590841610,-500.0,0.00047123,120]
[356513059,1742590841635,-500.0,0.00047123,120]
[356513060,1742590841659,-545.1633159,0.00047123,120]
[356513061,1742590841684,-500.0,0.00047123,120]
[356513062,1742590841709,-500.0,0.00047123,120]
[356513063,1742590841734,-500.0,0.00047123,120]
[356513064,1742590841759,-500.0,0.00047123,120]
[356513065,1742590841784,-500.0,0.00047123,120]
[356513066,1742590841985,-251.23391815,0.00047123,120]
[356513067,1742590842011,-500.0,0.00047123,120]
[356513068,1742590842038,-500.0,0.00047123,120]
[356513069,1742590842064,-563.72,0.00047123,120]
[356513070,1742590842090,-313.7646938,0.00047123,120]
[356513071,1742590842123,-500.0,0.00047123,120]
[356513072,1742590842149,-500.0,0.00047123,120]
[356513073,1742590842175,-500.0,0.00047123,120]
[356513074,1742590842203,-500.0,0.00047123,120]
[356513075,1742590842228,-500.0,0.00047123,120]
[356513076,1742590842254,-500.0,0.00047123,120]
[356513077,1742590842280,-500.0,0.00047123,120]
[356513078,1742590842306,-500.0,0.00047123,120]
[356513079,1742590842331,-500.0,0.00047123,120]
[356513080,1742590842359,-500.0,0.00047123,120]
[356513081,1742590842385,-516.0805076,0.00047123,120]
[356513082,1742590842412,-500.0,0.00047123,120]
[356513083,1742590842437,-300.0,0.00047123,120]
[356513084,1742590842464,-500.0,0.00047123,120]
[356513085,1742590842491,-500.0,0.00047123,120]
[356513086,1742590842517,-500.0,0.00047123,120]
[356513087,1742590842543,-583.05,0.00047123,120]
[356513088,1742590842568,-571.97512342,0.00047123,120]
[356513089,1742590842595,-500.0,0.00047123,120]
[356513090,1742590842620,-528.0810643,0.00047123,120]
[356513091,1742590842647,-500.0,0.00047123,120]
[356513092,1742590842674,-500.0,0.00047123,120]
[356513093,1742590842699,-500.0,0.00047123,120]
[356513094,1742590842725,-500.0,0.00047123,120]
[356513095,1742590842751,-554.99373561,0.00047123,120]
[356513096,1742590842777,-500.0,0.00047123,120]
[356513097,1742590842803,-500.0,0.00047123,120]
[356513098,1742590842828,-592.08648183,0.00047123,120]
[356513099,1742590842855,-500.0,0.00047123,120]
[356513100,1742590842882,-1033.31,0.00047123,120]
[356513101,1742590842908,-500.0,0.00047123,120]
[356513102,1742590842934,-500.0,0.00047123,120]
[356513103,1742590842959,-500.0,0.00047123,120]
[356513104,1742590842984,-500.0,0.00047123,120]
[356513105,1742590843009,-500.0,0.00047123,120]
[356513106,1742590843034,-782.8,0.00047123,120]
[356513107,1742590843060,-500.0,0.00047123,120]
[356513108,1742590843086,-500.0,0.00047123,120]
[356513109,1742590843116,-3461.06,0.00047123,120]
[356513110,1742590843143,-500.0,0.00047123,120]
[356513111,1742590843170,-500.0,0.00047123,120]
[356513112,1742590843198,-500.0,0.00047123,120]
[356513113,1742590843224,-500.0,0.00047123,120]
[356513114,1742590843250,-598.09776654,0.00047123,120]
[356513115,1742590843276,-500.0,0.00047123,120]
[356513116,1742590843302,-500.0,0.00047123,120]
[356513117,1742590843327,-500.0,0.00047123,120]
[356513118,1742590843353,-500.0,0.00047123,120]
[356513119,1742590843379,-500.0,0.00047123,120]
[356513120,1742590843405,-500.0,0.00047123,120]
[356513121,1742590843430,-513.90999775,0.00047123,120]
[356513122,1742590843457,-500.0,0.00047123,120]
[356513123,1742590843482,-527.54625499,0.00047123,120]
[356513124,1742590843508,-500.0,0.00047123,120]
[356513125,1742590843533,-505.7,0.00047123,120]
[356513126,1742590843559,-500.0,0.00047123,120]
[356513127,1742590843584,-500.0,0.00047123,120]
[356513128,1742590843610,-500.0,0.00047123,120]
[356513129,1742590843638,-500.0,0.00047123,120]
[356513130,1742590843664,-614.18,0.00047123,120]
[356513131,1742590843690,-500.0,0.00047123,120]
[356513132,1742590843717,-500.0,0.00047123,120]
[356513133,1742590843743,-269.66517387,0.00047123,120]
[356513134,1742590843769,-500.0,0.00047123,120]
[356513135,1742590843795,-500.0,0.00047123,120]
[356513136,1742590843822,-500.0,0.00047123,120]
[356513137,1742590843850,-500.0,0.00047123,120]
[356513138,1742590843876,-500.0,0.00047123,120]
[356513139,1742590843902,-500.0,0.00047123,120]
[356513140,1742590843928,-500.0,0.00047123,120]
[356513141,1742590843953,-500.0,0.00047123,120]
[356513142,1742590843978,-500.0,0.00047123,120]
[356513143,1742590844004,-508.68,0.00047123,120]
[356513144,1742590844030,-500.0,0.00047123,120]
[356513145,1742590844055,-500.0,0.00047123,120]
[356513146,1742590844084,-504.94927978,0.00047123,120]
[356513147,1742590844113,-500.0,0.00047123,120]
[356513148,1742590844138,-500.0,0.00047123,120]
[356513149,1742590844166,-500.0,0.00047123,120]
[356513150,1742590844192,-500.0,0.00047123,120]
[356513151,1742590844218,-500.0,0.00047123,120]
[356513152,1742590844244,-723.25,0.00047123,120]
[356513153,1742590844272,-500.0,0.00047123,120]
[356513154,1742590844298,-500.0,0.00047123,120]
[356513155,1742590844323,-690.77,0.00047123,120]
[356513156,1742590844501,-545.49,0.00047123,120]
[356513157,1742590844528,-549.7,0.00047123,120]
[356513158,1742590844554,-806.33,0.00047123,120]
[356513159,1742590844580,-500.0,0.00047123,120]
[356513160,1742590844605,-502.40781368,0.00047123,120]
[356513161,1742590844632,-2499.87,0.00047123,120]
[356513162,1742590844658,-500.0,0.00047123,120]
[356513163,1742590844684,-500.0,0.00047123,120]
[356513164,1742590844710,-832.27,0.00047123,120]
[356513165,1742590844737,-776.34,0.00047123,120]
[356513166,1742590844763,-500.0,0.00047123,120]
[356513167,1742590844789,-500.0,0.00047123,120]
[356513168,1742590844814,-500.0,0.00047123,120]
[356513169,1742590844839,-500.0,0.00047123,120]
[356513170,1742590844864,-500.0,0.00047123,120]
[356513171,1742590844890,-500.0,0.00047123,120]
[356513172,1742590844915,-500.0,0.00047123,120]
[356513173,1742590844941,-500.0,0.00047123,120]
[356513174,1742590844966,-500.0,0.00047123,120]
[356513175,1742590844991,-553.28,0.00047123,120]
[356513176,1742590845016,-500.0,0.00047123,120]
[356513177,1742590845042,-500.0,0.00047123,120]
[356513178,1742590845067,-500.0,0.00047123,120]
[356513179,1742590845093,-500.0,0.00047123,120]
[356513180,1742590845125,-500.0,0.00047123,120]
[356513181,1742590845156,-706.27,0.00047123,120]
[356513182,1742590845194,-500.0,0.00047123,120]
[356513183,1742590845223,-500.0,0.00047123,120]
[356513184,1742590845252,-500.0,0.00047123,120]
[356513185,1742590845281,-500.0,0.00047123,120]
[356513186,1742590845310,-500.0,0.00047123,120]
[356513187,1742590845340,-500.0,0.00047123,120]
[356513188,1742590845369,-956.18,0.00047123,120]
[356513189,1742590845399,-500.0,0.00047123,120]
[356513190,1742590845429,-500.0,0.00047123,120]
[356513191,1742590845459,-500.0,0.00047123,120]
[356513192,1742590845489,-500.0,0.00047123,120]
[356513193,1742590845518,-722.07,0.00047123,120]
[356513194,1742590845545,-505.86852011,0.00047123,120]
[356513195,1742590845574,-500.0,0.00047123,120]
[356513196,1742590845604,-500.0,0.00047123,120]
[356513197,1742590845635,-500.0,0.00047123,120]
[356513198,1742590845664,-802.32,0.00047123,120]
[356513199,1742590845693,-500.0,0.00047123,120]
[356513200,1742590845722,-261.8070996,0.00047123,120]
[356513201,1742590845750,-204.51081751,0.00047123,120]
[356513202,1742590845778,-500.0,0.00047123,120]
[356513203,1742590845806,-500.0,0.00047123,120]
[356513204,1742590845836,-500.0,0.00047123,120]
[356513205,1742590845867,-500.0,0.00047123,120]
[356513206,1742590845896,-500.0,0.00047123,120]
[356513207,1742590845925,-500.0,0.00047123,120]
[356513208,1742590845955,-500.0,0.00047123,120]
[356513209,1742590845984,-574.54,0.00047123,120]
[356513210,1742590846012,-625.98,0.00047123,120]
[356513211,1742590846041,-500.0,0.00047123,120]
[356513212,1742590846069,-500.0,0.00047123,120]
[356513213,1742590846101,-500.0,0.00047123,120]
[356513214,1742590846133,-500.0,0.00047123,120]
[356513215,1742590846164,-1500.0,0.00047123,120]
[356513216,1742590846194,-500.0,0.00047123,120]
[356513217,1742590846223,-500.0,0.00047123,120]
[356513218,1742590846253,-500.0,0.00047123,120]
[356513219,1742590846284,-500.0,0.00047123,120]
[356513220,1742590846314,-500.0,0.00047123,120]
[356513221,1742590846344,-500.0,0.00047123,120]
[356513222,1742590846375,-500.0,0.00047123,120]
[356513223,1742590846404,-598.11,0.00047123,120]
[356513224,1742590846432,-500.0,0.00047123,120]
[356513225,1742590846461,-500.0,0.00047123,120]
[356513226,1742590846491,-2418.17,0.00047123,120]
[356513227,1742590846518,-500.0,0.00047123,120]
[356513228,1742590846547,-500.0,0.00047123,120]
[356513229,1742590846575,-500.0,0.00047123,120]
[356513230,1742590846605,-500.0,0.00047123,120]
[356513231,1742590846634,-500.0,0.00047123,120]
[356513232,1742590846663,-500.0,0.00047123,120]
[356513233,1742590846692,-500.0,0.00047123,120]
[356513234,1742590846720,-500.0,0.00047123,120]
[356513235,1742590846749,-500.0,0.00047123,120]
[356513236,1742590846777,-562.49,0.00047123,120]
[356513237,1742590846805,-677.48,0.00047123,120]
[356513238,1742590846835,-500.0,0.00047123,120]
[356513239,1742590846864,-500.0,0.00047123,120]
[356513240,1742590846892,-282.30065866,0.00047123,120]
[356513241,1742590846920,-2780.65,0.00047123,120]
[356513242,1742590847090,-574.57035769,0.00047123,120]
[356513243,1742590847125,-500.0,0.00047123,120]
[356513244,1742590847156,-500.0,0.00047123,120]
[356513245,1742590847187,-500.0,0.00047123,120]
[356513246,1742590847218,-500.0,0.00047123,120]
[356513247,1742590847248,-500.0,0.00047123,120]
[356513248,1742590847278,-500.0,0.00047123,120]
[356513249,1742590847309,-500.0,0.00047123,120]
[356513250,1742590847338,-500.0,0.00047123,120]
[356513251,1742590847366,-500.0,0.00047123,120]
[356513252,1742590847396,-500.0,0.00047123,120]
[356513253,1742590847425,-500.0,0.00047123,120]
[356513254,1742590847455,-500.0,0.00047123,120]
[356513255,1742590847483,-500.0,0.00047123,120]
[356513256,1742590847514,-500.0,0.00047123,120]
[356513257,1742590847542,-500.0,0.00047123,120]
[356513258,1742590847571,-500.0,0.00047123,120]
[356513259,1742590847601,-510.59873102,0.00047123,120]
[356513260,1742590847630,-500.0,0.00047123,120]
[356513261,1742590847659,-500.0,0.00047123,120]
[356513262,1742590847688,-517.78093121,0.00047123,120]
[356513263,1742590847716,-500.93,0.00047123,120]
[356513264,1742590847746,-500.0,0.00047123,120]
[356513265,1742590847773,-500.0,0.00047123,120]
[356513266,1742590847802,-500.0,0.00047123,120]
[356513267,1742590847830,-234.49263713,0.00047123,120]
[356513268,1742590847859,-500.0,0.00047123,120]
[356513269,1742590847887,-1087.77,0.00047123,120]
[356513270,1742590847917,-500.0,0.00047123,120]
[356513271,1742590847948,-500.0,0.00047123,120]
[356513272,1742590847978,-500.0,0.00047123,120]
[356513273,1742590848008,-500.0,0.00047123,120]
[356513274,1742590848038,-789.42,0.00047123,120]
[356513275,1742590848069,-500.0,0.00047123,120]
[356513276,1742590848103,-500.0,0.00047123,120]
[356513277,1742590848135,-500.0,0.00047123,120]
[356513278,1742590848167,-500.0,0.00047123,120]
[356513279,1742590848200,-500.0,0.00047123,120]
[356513280,1742590848231,-500.0,0.00047123,120]
[356513281,1742590848264,-500.0,0.00047123,120]
[356513282,1742590848298,-500.0,0.00047123,120]
[356513283,1742590848334,-500.0,0.00047123,120]
[356513284,1742590848369,-500.0,0.00047123,120]
[356513285,1742590848403,-500.0,0.00047123,120]
[356513286,1742590848435,-500.0,0.00047123,120]
[356513287,1742590848469,-500.0,0.00047123,120]
[356513288,1742590848502,-1095.4,0.00047123,120]
[356513289,1742590848533,-500.0,0.00047123,120]
[356513290,1742590848565,-500.0,0.00047123,120]
[356513291,1742590848596,-740.49,0.00047123,120]
[356513292,1742590848627,-271.05708927,0.00047123,120]
[356513293,1742590848657,-917.49,0.00047123,120]
[356513294,1742590848687,-500.0,0.00047123,120]
[356513295,1742590848717,-500.0,0.00047123,120]
[356513296,1742590848753,-500.0,0.00047123,120]
[356513297,1742590848785,-500.0,0.00047123,120]
[356513298,1742590848814,-525.2,0.00047123,120]
[356513299,1742590848845,-1095.6,0.00047123,120]
[356513300,1742590848875,-500.0,0.00047123,120]
[356513301,1742590848905,-596.35,0.00047123,120]
[356513302,1742590848936,-500.0,0.00047123,120]
[356513303,1742590848966,-723.24,0.00047123,120]
[356513304,1742590848997,-500.0,0.00047123,120]
[356513305,1742590849027,-500.0,0.00047123,120]
[356513306,1742590849058,-500.0,0.00047123,120]
[356513307,1742590849089,-500.0,0.00047123,120]
[356513308,1742590849122,-500.0,0.00047123,120]
[356513309,1742590849153,-500.0,0.00047123,120]
[356513310,1742590849185,-500.0,0.00047123,120]
[356513311,1742590849217,-500.0,0.00047123,120]
[356513312,1742590849246,-500.0,0.00047123,120]
[356513313,1742590849276,-512.77864846,0.00047123,120]
[356513314,1742590849307,-500.0,0.00047123,120]
[356513315,1742590849336,-500.0,0.00047123,120]
[356513316,1742590849367,-428.74916357,0.00047123,120]
[356513317,1742590849399,-500.0,0.00047123,120]
[356513318,1742590849430,-500.0,0.00047123,120]
[356513319,1742590849465,-500.0,0.00047123,120]
[356513320,1742590849496,-500.0,0.00047123,120]
[356513321,1742590849526,-500.0,0.00047123,120]
[356513322,1742590849558,-703.07,0.00047123,120]
[356513323,1742590849590,-500.0,0.00047123,120]
[356513324,1742590849621,-500.0,0.00047123,120]
[356513325,1742590849654,-922.35,0.00047123,120]
[356513326,1742590849847,-876.65,0.00047123,120]
[356513327,1742590849878,-500.0,0.00047123,120]
[356513328,1742590849907,-500.0,0.00047123,120]
[356513329,1742590849936,-500.0,0.00047123,120]
[356513330,1742590849965,-508.01682214,0.00047123,120]
[356513331,1742590849994,-567.06,0.00047123,120]
[356513332,1742590850022,-500.0,0.00047123,120]
[356513333,1742590850051,-500.0,0.00047123,120]
[356513334,1742590850082,-500.0,0.00047123,120]
[356513335,1742590850116,-1451.02,0.00047123,120]
[356513336,1742590850146,-500.0,0.00047123,120]
[356513337,1742590850176,-1047.34,0.00047123,120]
[356513338,1742590850206,-500.0,0.00047123,120]
[356513339,1742590850236,-500.0,0.00047123,120]
[356513340,1742590850277,-500.0,0.00047123,120]
[356513341,1742590850311,-500.0,0.00047123,120]
[356513342,1742590850342,-500.0,0.00047123,120]
[356513343,1742590850375,-524.14,0.00047123,120]
[356513344,1742590850407,-500.0,0.00047123,120]
[356513345,1742590850437,-500.0,0.00047123,120]
[356513346,1742590850467,-500.0,0.00047123,120]
[356513347,1742590850499,-500.0,0.00047123,120]
[356513348,1742590850530,-500.0,0.00047123,120]
[356513349,1742590850560,-273.37800772,0.00047123,120]
[356513350,1742590850590,-463.68406566,0.00047123,120]
[356513351,1742590850622,-500.0,0.00047123,120]
[356513352,1742590850653,-500.0,0.00047123,120]
[356513353,1742590850683,-500.0,0.00047123,120]
[356513354,1742590850714,-500.0,0.00047123,120]
[356513355,1742590850744,-637.39,0.00047123,120]
[356513356,1742590850773,-500.0,0.00047123,120]
[356513357,1742590850802,-500.0,0.00047123,120]
[356513358,1742590850831,-500.0,0.00047123,120]
[356513359,1742590850860,-500.0,0.00047123,120]
[356513360,1742590850890,-500.0,0.00047123,120]
[356513361,1742590850920,-500.0,0.00047123,120]
[356513362,1742590850955,-652.68,0.00047123,120]
[356513363,1742590850987,-591.51259116,0.00047123,120]
[356513364,1742590851018,-500.0,0.00047123,120]
[356513365,1742590851050,-500.0,0.00047123,120]
[356513366,1742590851080,-500.0,0.00047123,120]
[356513367,1742590851112,-500.0,0.00047123,120]
[356513368,1742590851143,-500.0,0.00047123,120]
[356513369,1742590851172,-500.0,0.00047123,120]
[356513370,1742590851205,-500.0,0.00047123,120]
[356513371,1742590851234,-500.0,0.00047123,120]
[356513372,1742590851265,-463.94489287,0.00047123,120]
[356513373,1742590851296,-500.0,0.00047123,120]
[356513374,1742590851326,-284.56353039,0.00047123,120]
[356513375,1742590851357,-500.0,0.00047123,120]
[356513376,1742590851389,-878.74,0.00047123,120]
[356513377,1742590851421,-1563.26,0.00047123,120]
[356513378,1742590851452,-500.0,0.00047123,120]
[356513379,1742590851482,-500.0,0.00047123,120]
[356513380,1742590851512,-500.0,0.00047123,120]
[356513381,1742590851543,-500.0,0.00047123,120]
[356513382,1742590851574,-500.0,0.00047123,120]
[356513383,1742590851606,-498.85706264,0.00047123,120]
[356513384,1742590851637,-1058.149737,0.00047123,120]
[356513385,1742590851667,-500.0,0.00047123,120]
[356513386,1742590851697,-811.02,0.00047123,120]
[356513387,1742590851727,-500.0,0.00047123,120]
[356513388,1742590851757,-500.0,0.00047123,120]
[356513389,1742590851786,-500.0,0.00047123,120]
[356513390,1742590851815,-500.0,0.00047123,120]
[356513391,1742590851843,-500.0,0.00047123,120]
[356513392,1742590851872,-783.5,0.00047123,120]
[356513393,1742590851899,-589.07,0.00047123,120]
[356513394,1742590851927,-502.77677621,0.00047123,120]
[356513395,1742590851955,-252.5284309,0.00047123,120]
[356513396,1742590851983,-500.0,0.00047123,120]
[356513397,1742590852011,-500.0,0.00047123,120]
[356513398,1742590852040,-511.51609331,0.00047123,120]
[356513399,1742590852069,-500.0,0.00047123,120]
[356513400,1742590852098,-500.0,0.00047123,120]
[356513401,1742590852132,-500.0,0.00047123,120]
[356513402,1742590852164,-830.958807,0.00047123,120]
[356513403,1742590852196,-500.0,0.00047123,120]
[356513404,1742590852226,-554.83,0.00047123,120]
[356513405,1742590852254,-1041.23,0.00047123,120]
[356513406,1742590852282,-500.0,0.00047123,120]
[356513407,1742590852487,-608.84,0.00047123,120]
[356513408,1742590852518,-500.0,0.00047123,120]
[356513409,1742590852546,-528.02130938,0.00047123,120]
[356513410,1742590852574,-159.08336,0.00047123,120]
[356513411,1742590852603,-500.0,0.00047123,120]
[356513412,1742590852631,-500.0,0.00047123,120]
[356513413,1742590852659,-500.0,0.00047123,120]
[356513414,1742590852686,-5314.63,0.00047123,120]
[356513415,1742590852714,-895.58,0.00047123,120]
[356513416,1742590852742,-500.0,0.00047123,120]
[356513417,1742590852770,-1411.08,0.00047123,120]
[356513418,1742590852797,-500.0,0.00047123,120]
[356513419,1742590852826,-500.0,0.00047123,120]
[356513420,1742590852854,-559.37,0.00047123,120]
[356513421,1742590852882,-500.0,0.00047123,120]
[356513422,1742590852911,-517.33303287,0.00047123,120]
[356513423,1742590852939,-500.0,0.00047123,120]
[356513424,1742590852968,-500.0,0.00047123,120]
[356513425,1742590852997,-500.0,0.00047123,120]
[356513426,1742590853026,-500.0,0.00047123,120]
[356513427,1742590853056,-812.98,0.00047123,120]
[356513428,1742590853087,-761.87,0.00047123,120]
[356513429,1742590853117,-500.0,0.00047123,120]
[356513430,1742590853148,-500.0,0.00047123,120]
[356513431,1742590853176,-500.0,0.00047123,120]
[356513432,1742590853204,-500.0,0.00047123,120]
[356513433,1742590853232,-500.0,0.00047123,120]
[356513434,1742590853260,-500.0,0.00047123,120]
[356513435,1742590853289,-601.95301388,0.00047123,120]
[356513436,1742590853316,-500.0,0.00047123,120]
[356513437,1742590853344,-500.0,0.00047123,120]
[356513438,1742590853372,-2150.94,0.00047123,120]
[356513439,1742590853401,-589.58,0.00047123,120]
[356513440,1742590853431,-1162.97,0.00047123,120]
[356513441,1742590853459,-504.56435658,0.00047123,120]
[356513442,1742590853487,-712.11,0.00047123,120]
[356513443,1742590853515,-716.99,0.00047123,120]
[356513444,1742590853543,-560.5,0.00047123,120]
[356513445,1742590853574,-500.0,0.00047123,120]
[356513446,1742590853606,-841.08,0.00047123,120]
[356513447,1742590853637,-500.0,0.00047123,120]
[356513448,1742590853667,-1429.31,0.00047123,120]
[356513449,1742590853697,-500.0,0.00047123,120]
[356513450,1742590853726,-500.0,0.00047123,120]
[356513451,1742590853756,-886.88,0.00047123,120]
[356513452,1742590853785,-500.0,0.00047123,120]
[356513453,1742590853813,-530.32,0.00047123,120]
[356513454,1742590853843,-500.0,0.00047123,120]
[356513455,1742590853874,-3522.85,0.00047123,120]
[356513456,1742590853903,-500.0,0.00047123,120]
[356513457,1742590853933,-500.0,0.00047123,120]
[356513458,1742590853962,-500.0,0.00047123,120]
[356513459,1742590853992,-500.0,0.00047123,120]
[356513460,1742590854022,-810.0,0.00047123,120]
[356513461,1742590854052,-500.0,0.00047123,120]
[356513462,1742590854083,-500.0,0.00047123,120]
[356513463,1742590854118,-500.0,0.00047123,120]
[356513464,1742590854151,-633.52,0.00047123,120]
[356513465,1742590854184,-505.66,0.00047123,120]
[356513466,1742590854216,-506.41,0.00047123,120]
[356513467,1742590854250,-500.0,0.00047123,120]
[356513468,1742590854281,-500.0,0.00047123,120]
[356513469,1742590854311,-1060.43,0.00047123,120]
[356513470,1742590854340,-862.46,0.00047123,120]
[356513471,1742590854369,-2492.21,0.00047123,120]
[356513472,1742590854397,-500.0,0.00047123,120]
[356513473,1742590854426,-500.0,0.00047123,120]
[356513474,1742590854454,-600.23,0.00047123,120]
[356513475,1742590854483,-527.24253703,0.00047123,120]
[356513476,1742590854513,-500.0,0.00047123,60]
[356513477,1742590854542,-500.0,0.00047123,120]
[356513478,1742590854571,-664.01,0.00047123,120]
[356513479,1742590854600,-652.73,0.00047123,120]
[356513480,1742590854629,-1441.73,0.00047123,120]
[356513481,1742590854659,-179.62678841,0.00047123,120]
[356513482,1742590854686,-825.49,0.00047123,120]
[356513483,1742590854714,-736.18,0.00047123,120]
[356513484,1742590854742,-294.16165171,0.00047123,120]
[356513485,1742590854917,-500.0,0.00047123,120]